bitfinex/quotes_SOLUSD_20250907
["timestamp","ask_amount","ask_price","bid_price","bid_amount"]
[1757217481510,0.06,202.87,202.86,6.83414941]
[1757217481714,0.06,202.87,202.86,36.44414941]
[1757217481905,0.06,202.87,202.86,8.80707106]
[1757217482513,0.06,202.87,202.86,13.73657909]
[1757217488028,0.06,202.87,202.86,13.73657909]
[1757217489427,0.06,202.87,202.86,11.21528631]
[1757217489611,0.06,202.87,202.86,15.15026541]
[1757217490310,0.06,202.88,202.86,15.15026541]
[1757217490513,0.06,202.88,202.87,8.24783573]
[1757217490915,0.06,202.88,202.87,10.22066008]
[1757217492015,0.06,202.88,202.87,15.14992512]
[1757217497430,0.06,202.88,202.87,17.97636585]
[1757217501938,0.06,202.88,202.87,17.97606461]
[1757217502140,0.06,202.88,202.87,13.33108551]
[1757217502335,0.06,202.88,202.87,17.26606461]
[1757217502641,0.06,202.88,202.87,17.97606461]
[1757217502845,0.06,202.88,202.87,18.00606461]
[1757217505252,0.06,202.88,202.87,14.07108551]
[1757217505548,0.06,202.88,202.87,18.00606461]
[1757217509450,0.06,202.88,202.87,18.00823355]
[1757217520260,0.06,202.89,202.87,18.00823355]
[1757217520553,0.06,202.89,202.88,11.07614416]
[1757217521056,0.06,202.89,202.88,13.04887121]
[1757217522437,0.06,202.89,202.88,17.97789329]
[1757217525762,0.06,202.9,202.88,59.35287239]
[1757217526059,0.00856888,202.9,202.89,15.01112326]
[1757217526281,0.01360843,202.91,202.89,15.01112326]
[1757217526460,0.01360843,202.91,202.9,15.01112326]
[1757217526965,0.01360843,202.91,202.9,21.91228925]
[1757217530550,0.01360843,202.91,202.9,59.35228925]
[1757217532468,0.01360843,202.91,202.9,59.34410499]
[1757217533668,0.06,202.92,202.9,59.34410499]
[1757217533852,0.06,202.92,202.91,11.0079599]
[1757217534258,0.06,202.92,202.91,12.98039512]
[1757217536152,0.06,202.93,202.92,4.92805046]
[1757217536346,0.06,202.93,202.92,53.37601036]
[1757217536547,0.06,202.93,202.92,53.37345371]
[1757217536743,0.06,202.93,202.92,55.34588892]
[1757217540473,0.06,202.93,202.92,55.35992264]
[1757217542770,0.06,202.93,202.92,84.96992264]
[1757217542957,0.06,202.93,202.92,55.35992264]
[1757217549575,0.06,202.93,202.92,51.42427652]
[1757217549778,0.06,202.93,202.92,55.35925562]
[1757217551574,0.06,202.93,202.92,53.94110706]
[1757217553179,0.06,202.93,202.92,53.97110706]
[1757217560792,0.06,202.93,202.92,16.53110706]
[1757217561087,0.06,202.93,202.92,53.97110706]
[1757217563182,0.06,202.93,202.92,83.58110706]
[1757217563484,0.06,202.93,202.92,16.53110706]
[1757217563798,0.06,202.93,202.92,53.97110706]
[1757217567482,0.06,202.93,202.92,13.36427652]
[1757217567687,0.63,202.93,202.92,8.43622606]
[1757217568187,0.63,202.93,202.92,10.9530566]
[1757217568365,0.63,202.93,202.92,8.43622606]
[1757217568988,0.63,202.93,202.92,10.9530566]
[1757217569786,0.63,202.93,202.92,8.43622606]
[1757217569976,0.63,202.93,202.92,10.9530566]
[1757217570882,0.63,202.93,202.92,7.3616079]
[1757217571077,0.63,202.93,202.92,10.96128417]
[1757217574486,0.63,202.93,202.92,10.95903916]
[1757217575881,0.63,202.93,202.92,8.44220862]
[1757217576084,0.63,202.93,202.92,10.95903916]
[1757217577391,0.06,202.93,202.92,10.95903916]
[1757217579188,0.06,202.93,202.92,15.88708962]
[1757217579491,0.06,202.93,202.92,16.58708962]
[1757217582302,0.06,202.93,202.92,15.88708962]
[1757217583803,0.06,202.93,202.92,16.58708962]
[1757217593709,0.06,202.93,202.92,14.07025908]
[1757217593911,0.06,202.93,202.92,16.57708962]
[1757217596302,0.06,202.93,202.92,16.57333023]
[1757217601022,0.06,202.93,202.92,14.05649969]
[1757217601224,0.06,202.93,202.92,16.57333023]
[1757217602199,0.06,202.93,202.92,16.57421368]
[1757217611426,0.06,202.93,202.92,13.36738314]
[1757217611610,0.06,202.93,202.92,17.30158354]
[1757217612422,0.06,202.93,202.92,17.99158354]
[1757217620226,0.06,202.93,202.92,17.99589955]
[1757217632631,0.008455,202.93,202.92,17.99589955]
[1757217633226,0.06,202.97,202.95,26.0]
[1757217633447,0.06,202.97,202.96,10.37541388]
[1757217633848,0.06,202.97,202.96,13.00775184]
[1757217634627,0.06,202.97,202.96,17.93483106]
[1757217635143,0.06,202.97,202.96,22.90670235]
[1757217638029,0.06,202.97,202.96,19.30783102]
[1757217638235,0.06,202.97,202.96,22.89837376]
[1757217639441,0.06,202.97,202.96,22.23837376]
[1757217641861,0.06,202.97,202.96,22.23720361]
[1757217643968,0.06,202.97,202.96,22.89720361]
[1757217644858,0.06,202.97,202.96,18.96300321]
[1757217645161,0.06,202.97,202.96,22.89720361]
[1757217652947,0.06,202.97,202.96,19.33783102]
[1757217653259,0.06,202.97,202.96,22.92257949]
[1757217661761,0.63,202.97,202.96,22.26257949]
[1757217663386,0.06,202.97,202.96,22.26257949]
[1757217664588,0.06,202.97,202.96,22.97257949]
[1757217665670,0.06,202.97,202.96,19.38783102]
[1757217665877,0.06,202.97,202.96,22.97781048]
[1757217668181,0.06,202.97,202.96,22.97880157]
[1757217669968,0.06,202.97,202.96,22.97959348]
[1757217671495,0.06,202.97,202.96,21.56203418]
[1757217677996,0.03466849,202.97,202.96,21.56203418]
[1757217687479,0.03466849,202.97,202.96,21.567151]
[1757217687967,0.01466849,202.97,202.96,21.567151]
[1757217697906,0.06,202.98,202.96,21.567151]
[1757217698110,0.06,202.98,202.97,9.66586253]
[1757217698485,0.06,202.98,202.97,11.63790878]
[1757217702113,0.06,202.98,202.97,16.56474525]
[1757217707905,0.03458444,202.98,202.97,16.56474525]
[1757217709907,0.06,203.01,203.0,26.0]
[1757217710204,0.06,203.01,203.0,34.95586253]
[1757217710510,0.06,203.01,203.0,37.61751995]
[1757217711718,0.06,203.01,203.0,40.02698722]
[1757217712093,0.06,203.01,203.0,42.54362832]
[1757217715112,0.06,203.01,203.0,52.61019272]
[1757217717994,0.03463955,203.01,203.0,52.61019272]
[1757217727626,0.03463955,203.01,203.0,82.20019272]
[1757217727928,0.01463955,203.01,203.0,82.20019272]
[1757217729728,0.01463955,203.01,203.0,82.27743727]
[1757217731524,0.01463955,203.01,203.0,78.68055799]
[1757217732026,0.06,203.03,203.0,78.68055799]
[1757217732231,0.06,203.03,203.02,2.5166411]
[1757217732433,0.06,203.03,203.02,5.4362278]
[1757217732636,0.06,203.03,203.02,6.1262278]
[1757217732818,0.06,203.03,203.02,43.5462278]
[1757217733130,0.06,203.03,203.02,48.47185089]
[1757217733333,0.06,203.03,203.02,50.44302251]
[1757217733534,0.06,203.03,203.02,51.8544128]
[1757217734737,0.06,203.04,203.03,12.46299857]
[1757217735232,0.06,203.04,203.03,14.43407305]
[1757217736340,0.06,203.04,203.03,18.01639553]
[1757217737236,0.06,203.06,203.05,26.0]
[1757217737536,0.06,203.06,203.05,36.42994057]
[1757217737709,0.06,203.06,203.05,37.11994057]
[1757217738015,0.03464449,203.06,203.05,42.04241473]
[1757217738415,0.03464449,203.06,203.05,84.38731007]
[1757217741137,0.03464449,203.06,203.05,46.27731007]
[1757217742514,0.60464449,203.06,203.05,37.42438334]
[1757217743028,0.60464449,203.06,203.05,11.42438334]
[1757217743224,18.27043146,203.06,203.05,3.48232248]
[1757217743528,13.73775558,203.05,203.0,37.42438334]
[1757217743735,0.47,203.04,203.01,2.94261363]
[1757217743946,0.47,203.03,203.02,28.94261363]
[1757217752248,0.47,203.03,203.02,43.73296047]
[1757217753355,18.13578697,203.05,203.02,43.73296047]
[1757217753650,0.61216157,203.04,203.03,2.94261363]
[1757217754423,0.47,203.04,203.03,2.94261363]
[1757217754835,0.47,203.04,203.03,17.73223131]
[1757217755342,0.47,203.04,203.03,21.31825811]
[1757217755539,0.14216157,203.05,203.03,21.31825811]
[1757217755744,0.61216157,203.05,203.04,3.5860268]
[1757217756648,0.06,203.05,203.04,6.53241881]
[1757217756845,0.06,203.05,203.04,21.32130743]
[1757217757035,0.06,203.05,203.04,21.98130743]
[1757217758744,0.06,203.05,203.04,26.90644533]
[1757217759443,0.06,203.05,203.04,21.32130743]
[1757217759646,0.06,203.05,203.04,21.31997291]
[1757217760749,0.06,203.05,203.04,21.97997291]
[1757217765445,0.06,203.05,203.04,15.97997291]
[1757217766957,0.06,203.05,203.04,29.60505749]
[1757217775844,0.06,203.05,203.04,29.63505749]
[1757217778765,0.53,203.05,203.04,28.97505749]
[1757217778960,4.60019296,203.05,203.04,2.97505749]
[1757217779948,0.67216157,203.05,203.04,2.97505749]
[1757217780963,0.20216157,203.05,203.04,2.97505749]
[1757217784671,0.20216157,203.05,203.04,6.46213422]
[1757217786375,37.70216157,203.05,203.04,6.46213422]
[1757217788368,37.70216157,203.05,203.04,2.97505749]
[1757217788565,37.70216157,203.05,203.04,6.46516731]
[1757217793184,37.70216157,203.05,203.04,7.14516731]
[1757217794062,37.70216157,203.05,203.04,6.46516731]
[1757217795072,37.54,203.05,203.04,7.14516731]
[1757217796184,0.06,203.05,203.04,9.66088424]
[1757217797168,0.06,203.05,203.04,14.58602214]
[1757217810200,0.06,203.05,203.04,7.14516731]
[1757217810498,0.53,203.05,203.04,6.46516731]
[1757217811280,0.06,203.05,203.04,6.46516731]
[1757217811597,37.56,203.05,203.04,7.11516731]
[1757217811777,37.56,203.05,203.04,6.46516731]
[1757217818806,37.56,203.05,203.04,7.11516731]
[1757217820708,0.06,203.05,203.04,7.11516731]
[1757217823901,0.06,203.05,203.04,14.55602214]
[1757217827703,0.06,203.05,203.04,29.34272397]
[1757217836828,0.06,203.05,203.04,26.82700704]
[1757217837006,0.06,203.05,203.04,29.34272397]
[1757217839231,0.06,203.05,203.04,29.34412549]
[1757217846426,0.06,203.05,203.04,24.41898759]
[1757217852941,0.06,203.05,203.04,21.90327066]
[1757217853143,0.06,203.05,203.04,24.41898759]
[1757217853438,0.06,203.05,203.04,29.34412549]
[1757217856734,0.06,203.05,203.04,29.345977]
[1757217857443,0.06,203.05,203.04,30.76051236]
[1757217858832,0.06,203.05,203.04,26.83026007]
[1757217860244,0.06,203.05,203.04,21.90512217]
[1757217861827,0.06,203.05,203.04,25.83537446]
[1757217862027,0.06,203.05,203.04,30.76051236]
[1757217863842,0.06,203.05,203.04,26.83026007]
[1757217864058,0.06,203.05,203.04,30.76051236]
[1757217865053,0.06,203.05,203.04,26.83026007]
[1757217874259,0.06,203.05,203.04,26.83382797]
[1757217875035,0.06,203.05,203.04,30.76408026]
[1757217883374,0.00628975,203.05,203.04,30.76408026]
[1757217885172,0.00628975,203.05,203.04,26.83382797]
[1757217893363,0.03464449,203.06,203.04,26.83382797]
[1757217893663,0.03464449,203.06,203.05,6.44198824]
[1757217894087,0.03464449,203.06,203.05,8.41354849]
[1757217894981,0.03464449,203.06,203.05,9.08354849]
[1757217895878,0.03464449,203.06,203.05,9.08394301]
[1757217899872,0.03464449,203.06,203.05,8.41394301]
[1757217901998,0.03464449,203.06,203.05,8.41424779]
[1757217903393,0.03464449,203.06,203.05,12.34450008]
[1757217903585,0.03464449,203.06,203.05,13.01450008]
[1757217904290,0.03464449,203.06,203.05,12.34450008]
[1757217904791,0.03464449,203.06,203.05,13.01450008]
[1757217904973,0.03464449,203.06,203.05,12.34450008]
[1757217905369,0.03464449,203.06,203.05,13.01450008]
[1757217905570,0.03464449,203.06,203.05,12.34450008]
[1757217906071,0.03464449,203.06,203.05,12.34457167]
[1757217906291,0.03464449,203.06,203.05,13.01457167]
[1757217906593,0.03464449,203.06,203.05,9.08431938]
[1757217906792,0.03464449,203.06,203.05,13.01457167]
[1757217908094,0.03464449,203.06,203.05,13.04457167]
[1757217909793,0.03464449,203.06,203.05,9.11431938]
[1757217913501,0.03464449,203.06,203.05,8.44431938]
[1757217913700,0.50464449,203.06,203.05,8.44431938]
[1757217913887,4.43489678,203.06,203.05,6.47275913]
[1757217914089,12.87921616,203.06,203.05,6.47275913]
[1757217916104,17.80386897,203.06,203.05,6.47275913]
[1757217916697,4.9592973,203.06,203.05,6.47275913]
[1757217917290,0.03464449,203.06,203.05,6.47275913]
[1757217923815,0.03464449,203.06,203.05,6.46501303]
[1757217924304,0.03464449,203.06,203.05,3.51995554]
[1757217927217,2.55062189,203.06,203.05,3.51995554]
[1757217927420,2.55062189,203.06,203.05,3.5188833]
[1757217928119,39.99062189,203.06,203.05,3.5188833]
[1757217928324,37.47464449,203.06,203.05,3.5188833]
[1757217928512,39.99062189,203.06,203.05,3.5188833]
[1757217929227,44.9152747,203.06,203.05,3.5188833]
[1757217932524,58.65303028,203.06,203.05,3.5188833]
[1757217932710,56.60705288,203.06,203.05,3.5188833]
[1757217932914,65.08137226,203.06,203.05,3.5188833]
[1757217933106,67.59734966,203.06,203.05,3.5188833]
[1757217933722,67.12734966,203.06,203.05,3.5188833]
[1757217934514,67.12734966,203.06,203.05,3.51801119]
[1757217938627,64.61137226,203.06,203.05,3.51801119]
[1757217938825,67.12734966,203.06,203.05,3.51801119]
[1757217939611,29.68734966,203.06,203.05,3.51801119]
[1757217939933,67.12734966,203.06,203.05,4.22801119]
[1757217941819,67.12734966,203.06,203.05,4.22784507]
[1757217942132,62.20269685,203.06,203.05,4.22784507]
[1757217942630,62.20269685,203.06,203.05,3.51784507]
[1757217943133,59.68671945,203.06,203.05,4.22784507]
[1757217945133,59.68671945,203.06,203.05,3.51784507]
[1757217946027,59.68671945,203.06,203.05,4.22784507]
[1757217947233,51.21240007,203.06,203.05,4.22784507]
[1757217948349,51.21240007,203.06,203.05,3.51784507]
[1757217950542,56.13705288,203.06,203.05,6.42442884]
[1757217952924,56.60705288,203.06,203.05,6.42442884]
[1757217953445,56.13705288,203.06,203.05,6.42442884]
[1757217953928,58.65303028,203.06,203.05,6.42442884]
[1757217955643,56.13705288,203.06,203.05,6.42442884]
[1757217956141,56.13705288,203.06,203.05,6.43073286]
[1757217958545,56.60705288,203.06,203.05,6.43073286]
[1757217958733,59.12303028,203.06,203.05,6.43073286]
[1757217958937,65.55376314,203.06,203.05,6.43073286]
[1757217959828,65.55376314,203.06,203.05,6.43414242]
[1757217960032,65.08376314,203.06,203.05,6.43414242]
[1757217969348,65.08376314,203.06,203.05,7.11414242]
[1757217973069,65.08376314,203.06,203.05,6.43414242]
[1757217973742,65.08376314,203.06,203.05,7.11414242]
[1757217975458,65.08376314,203.06,203.05,6.43414242]
[1757217976075,65.08376314,203.06,203.05,6.43405561]
[1757217977474,65.08376314,203.06,203.05,7.11405561]
[1757217977675,62.56778574,203.06,203.05,7.11405561]
[1757217977973,65.08376314,203.06,203.05,6.43405561]
[1757217978175,62.56778574,203.06,203.05,6.43405561]
[1757217978379,65.08376314,203.06,203.05,6.43405561]
[1757217979485,66.50002922,203.06,203.05,6.43405561]
[1757217982359,62.56778574,203.06,203.05,6.43405561]
[1757217982562,66.50002922,203.06,203.05,6.43405561]
[1757217983859,66.97002922,203.06,203.05,6.43405561]
[1757217984455,66.50002922,203.06,203.05,6.43405561]
[1757217989984,66.50002922,203.06,203.05,6.43405561]
[1757217993381,62.56778574,203.06,203.05,6.43405561]
[1757217993585,66.50002922,203.06,203.05,7.11405561]
[1757217993882,62.56778574,203.06,203.05,7.11405561]
[1757217994067,66.50002922,203.06,203.05,7.11405561]
[1757217995082,29.06002922,203.06,203.05,7.11405561]
[1757217995290,66.48002922,203.06,203.05,7.11405561]
[1757218001788,66.48002922,203.06,203.05,7.11377074]
[1757218002392,29.06002922,203.06,203.05,7.11377074]
[1757218002593,66.48002922,203.06,203.05,7.11377074]
[1757218004594,29.06002922,203.06,203.05,7.11377074]
[1757218004781,66.48002922,203.06,203.05,7.11377074]
[1757218010293,62.54778574,203.06,203.05,7.11377074]
[1757218010506,66.48002922,203.06,203.05,7.11377074]
[1757218019882,66.48002922,203.06,203.05,7.1141454]
[1757218023281,66.48002922,203.06,203.05,7.11450209]
[1757218024813,66.48002922,203.06,203.05,6.43450209]
[1757218025003,66.48002922,203.06,203.05,7.13450209]
[1757218026008,66.48002922,203.06,203.05,6.43450209]
[1757218026183,66.48002922,203.06,203.05,7.13450209]
[1757218033214,66.48002922,203.06,203.05,7.13584572]
[1757218036723,66.48002922,203.06,203.05,7.13584419]
[1757218038514,66.48002922,203.06,203.05,6.43584419]
[1757218041518,65.06470654,203.06,203.05,6.43584419]
[1757218044505,65.06470654,203.06,203.05,7.10584419]
[1757218058829,65.06470654,203.06,203.05,6.43584419]
[1757218064432,65.06470654,203.06,203.05,6.44315058]
[1757218066337,65.06470654,203.06,203.05,7.11315058]
[1757218069850,65.06470654,203.06,203.05,6.44315058]
[1757218070653,65.06470654,203.06,203.05,7.14315058]
[1757218072844,65.06470654,203.06,203.05,3.64389016]
[1757218073047,65.06470654,203.06,203.05,7.14315007]
[1757218074050,27.64470654,203.06,203.05,7.14315007]
[1757218074270,65.04470654,203.06,203.05,7.14315007]
[1757218075034,65.04470654,203.06,203.05,6.44315007]
[1757218077847,27.64470654,203.06,203.05,6.44315007]
[1757218078052,65.04470654,203.06,203.05,7.14315007]
[1757218078353,62.52778574,203.06,203.05,7.14315007]
[1757218078561,65.04470654,203.06,203.05,7.14315007]
[1757218080759,65.04470654,203.06,203.05,6.44315007]
[1757218083971,27.64470654,203.06,203.05,6.44315007]
[1757218084163,65.04470654,203.06,203.05,6.44315007]
[1757218087771,65.04470654,203.06,203.05,2.94389016]
[1757218087960,65.04470654,203.06,203.05,6.44316638]
[1757218090985,65.04470654,203.06,203.05,7.14316638]
[1757218097084,65.04470654,203.06,203.05,7.14316452]
[1757218101469,66.46048817,203.06,203.05,7.14316452]
[1757218116507,66.46048817,203.06,203.05,6.44316452]
[1757218116711,13.73775558,203.05,203.04,0.03]
[1757218116897,18.14045801,203.05,203.04,0.03]
[1757218117308,25.31362439,203.05,203.04,0.03]
[1757218118023,25.8358173,203.05,203.04,0.69]
[1757218118211,67.16851973,203.05,203.04,0.69]
[1757218119720,67.16851973,203.05,203.04,0.03]
[1757218120110,67.16851973,203.05,203.04,0.69]
[1757218120308,67.16851973,203.05,203.04,0.03]
[1757218136332,67.63851973,203.05,203.04,0.03]
[1757218137318,67.16851973,203.05,203.04,0.03]
[1757218138130,67.63851973,203.05,203.04,0.03]
[1757218139226,67.16851973,203.05,203.04,0.03]
[1757218139532,67.16851973,203.05,203.02,0.03]
[1757218139725,17.67045801,203.03,203.02,0.03]
[1757218140032,55.07045801,203.03,203.02,0.03]
[1757218140226,57.04308777,203.03,203.02,0.03]
[1757218141628,61.96846825,203.03,203.02,0.03]
[1757218145739,62.62846825,203.03,203.02,0.03]
[1757218151826,61.96846825,203.03,203.01,0.03]
[1757218152229,17.67045801,203.02,203.01,0.03]
[1757218152524,24.23588749,203.02,203.01,0.03]
[1757218152845,13.73775558,203.01,203.0,1e-08]
[1757218153141,55.81045801,203.01,203.0,1e-08]
[1757218153349,51.45775558,203.01,203.0,1e-08]
[1757218153537,57.36328235,203.01,203.0,1e-08]
[1757218153734,62.1869865,203.01,203.0,0.70000001]
[1757218154214,62.32914807,203.01,203.0,0.70000001]
[1757218158137,62.32914807,203.01,203.0,1e-08]
[1757218158344,62.98914807,203.01,203.0,1e-08]
[1757218158846,62.32914807,203.01,203.0,1e-08]
[1757218159550,63.03914807,203.01,203.0,1e-08]
[1757218160943,62.32914807,203.01,203.0,1e-08]
[1757218163452,60.91519282,203.01,203.0,1e-08]
[1757218164327,61.62519282,203.01,203.0,1e-08]
[1757218168632,20.63644564,203.01,203.0,1e-08]
[1757218168832,20.63644564,203.01,203.0,0.70000001]
[1757218169053,18.2293271,203.01,203.0,0.70000001]
[1757218169254,55.9493271,203.01,203.0,0.70000001]
[1757218170160,60.87519282,203.01,203.0,0.70000001]
[1757218172139,60.87519282,203.01,203.0,1e-08]
[1757218173867,58.35644564,203.01,203.0,0.70000001]
[1757218174045,60.87519282,203.01,203.0,0.70000001]
[1757218174467,60.87519282,203.01,203.0,1e-08]
[1757218175251,60.87519282,203.01,203.0,0.70000001]
[1757218175666,60.87519282,203.01,203.0,1e-08]
[1757218179473,15.71057992,203.01,203.0,1e-08]
[1757218179655,51.43775558,203.01,203.0,4.09432053]
[1757218186277,51.43775558,203.01,203.0,4.09221067]
[1757218188181,51.43775558,203.01,203.0,3.39221067]
[1757218191586,51.43775558,203.01,203.0,4.05221067]
[1757218191884,51.43775558,203.01,203.0,3.39221067]
[1757218193488,51.43775558,203.01,203.0,3.39056717]
[1757218196690,51.49775558,203.01,203.0,3.39056717]
[1757218197298,13.79775558,203.01,203.0,3.39056717]
[1757218197583,51.43775558,203.01,203.0,3.39056717]
[1757218200588,51.43775558,203.01,203.0,3.39040033]
[1757218201465,51.43775558,203.01,203.0,3.39034872]
[1757218202470,52.11775558,203.01,203.0,3.39034872]
[1757218211497,51.43775558,203.01,203.0,3.39034872]
[1757218211711,52.11775558,203.01,203.0,3.39034872]
[1757218212676,51.43775558,203.01,203.0,3.39034872]
[1757218213997,51.43775558,203.01,203.0,3.39441572]
[1757218214199,51.43775558,203.01,203.0,4.05441572]
[1757218214200,0.06,203.01,203.0,4.05441572]
[1757218214499,37.66,203.01,203.0,15.54961999]
[1757218216094,37.66,203.01,203.0,13.03087281]
[1757218216399,37.66,203.01,203.0,15.54961999]
[1757218217092,37.64,203.01,203.0,15.54961999]
[1757218217796,0.06,203.01,203.0,15.54961999]
[1757218218100,37.66,203.01,203.0,15.54961999]
[1757218223001,0.06,203.01,203.0,15.54961999]
[1757218223297,37.64,203.01,203.0,15.54961999]
[1757218223505,37.64,203.01,203.0,16.96193262]
[1757218226604,0.06,203.01,203.0,16.96193262]
[1757218228608,0.06,203.01,203.0,16.95581011]
[1757218229410,0.06,203.01,203.0,13.0247503]
[1757218229605,0.06,203.01,203.0,16.95581011]
[1757218245021,0.06,203.01,203.0,16.29581011]
[1757218245397,0.06,203.01,203.0,17.00581011]
[1757218247632,0.74,203.01,203.0,7.43864193]
[1757218249909,0.74,203.01,203.0,29.38829321]
[1757218252130,0.76,203.01,203.0,29.38829321]
[1757218252334,0.76,203.01,203.0,33.31935302]
[1757218252628,0.76,203.01,203.0,48.11042907]
[1757218253230,0.06,203.01,203.0,53.03653744]
[1757218255810,0.06,203.01,203.0,49.10547763]
[1757218256009,0.06,203.01,203.0,53.03653744]
[1757218270138,0.06,203.01,203.0,49.10547763]
[1757218270341,0.06,203.01,203.0,53.03653744]
[1757218273018,0.06,203.01,203.0,49.10547763]
[1757218273222,0.06,203.01,203.0,53.03653744]
[1757218277538,0.06,203.01,203.0,27.03653744]
[1757218285532,0.06,203.01,203.0,25.62148801]
[1757218295060,0.06,203.01,203.0,23.10547763]
[1757218295357,0.06,203.01,203.0,25.62148801]
[1757218301042,0.78,203.01,203.0,25.62148801]
[1757218302259,0.06,203.01,203.0,25.62148801]
[1757218303178,0.06,203.01,203.0,44.18848581]
[1757218303359,0.78,203.01,203.0,44.18848581]
[1757218305449,0.78,203.01,203.0,46.70449619]
[1757218308266,0.06,203.01,203.0,46.70449619]
[1757218308574,0.78,203.01,203.0,29.39740976]
[1757218308767,19.4436213,203.01,203.0,3.39740976]
[1757218309467,25.35704144,203.01,203.0,3.39740976]
[1757218310352,25.35704144,203.01,203.0,3.39437509]
[1757218311371,25.35704144,203.01,203.0,1e-08]
[1757218314468,35.42108296,203.01,203.0,1e-08]
[1757218314670,35.42108296,203.01,202.97,0.03]
[1757218314671,13.73775558,203.0,202.97,1e-08]
[1757218314879,16.25376596,202.98,202.97,1e-08]
[1757218315259,151.24707693,202.98,202.97,1e-08]
[1757218317967,156.17367068,202.98,202.97,1e-08]
[1757218320579,23.87367068,202.98,202.97,1e-08]
[1757218326779,13.73775558,202.95,202.91,0.03]
[1757218326976,53.77376596,202.95,202.91,0.03]
[1757218327287,54.49376596,202.95,202.91,0.03]
[1757218327588,56.46746641,202.95,202.91,0.03]
[1757218327960,61.39478841,202.95,202.91,0.03]
[1757218331490,61.39478841,202.95,202.93,1e-08]
[1757218331688,16.25376596,202.94,202.93,1e-08]
[1757218332194,16.97376596,202.94,202.93,1e-08]
[1757218332494,18.9477586,202.94,202.93,1e-08]
[1757218333389,23.87532339,202.94,202.93,1e-08]
[1757218335877,13.59559401,202.91,202.87,0.71]
[1757218336081,186.07376596,202.9,202.87,0.71]
[1757218336479,186.79376596,202.9,202.87,0.71]
[1757218336682,188.76775861,202.9,202.87,0.71]
[1757218336983,193.69629483,202.9,202.87,0.03]
[1757218337180,63.91230521,202.9,202.87,0.03]
[1757218339492,13.73775558,202.88,202.87,0.03]
[1757218339695,79.77376596,202.88,202.87,0.03]
[1757218339880,80.47376596,202.88,202.87,0.03]
[1757218340494,87.37726789,202.88,202.87,0.03]
[1757218340792,13.73775558,202.87,202.85,0.03]
[1757218341001,53.79376596,202.86,202.85,0.03]
[1757218341174,54.49376596,202.86,202.85,0.03]
[1757218341375,56.46834328,202.86,202.85,0.03]
[1757218343198,61.39785131,202.86,202.85,0.03]
[1757218345592,62.82346221,202.86,202.85,0.03]
[1757218349498,146.03775558,202.85,202.83,0.1]
[1757218349808,55.23937686,202.84,202.83,0.1]
[1757218350007,51.99775558,202.84,202.83,1e-08]
[1757218350191,55.93937686,202.84,202.83,1e-08]
[1757218350398,60.86937094,202.84,202.83,1e-08]
[1757218350718,62.84433823,202.84,202.83,1e-08]
[1757218350908,25.28433823,202.84,202.83,1e-08]
[1757218351110,62.84433823,202.84,202.83,1e-08]
[1757218355525,25.28433823,202.84,202.83,1e-08]
[1757218355830,62.84433823,202.84,202.83,1e-08]
[1757218357229,82.84433823,202.84,202.83,1e-08]
[1757218362529,39.73775558,202.83,202.82,0.03]
[1757218362720,47.62099814,202.83,202.82,0.03]
[1757218363026,48.32099814,202.83,202.82,0.03]
[1757218363209,50.29596543,202.83,202.82,0.03]
[1757218363406,39.73775558,202.81,202.8,0.03]
[1757218363626,85.18099814,202.81,202.8,0.03]
[1757218364131,89.25565299,202.81,202.8,0.03]
[1757218364526,94.18637632,202.81,202.8,0.03]
[1757218369838,90.24475504,202.81,202.8,0.03]
[1757218371537,89.52475504,202.81,202.8,0.73]
[1757218372328,51.98475504,202.81,202.8,0.03]
[1757218372524,89.52475504,202.81,202.8,0.73]
[1757218372842,89.52475504,202.81,202.8,0.03]
[1757218373333,51.98475504,202.81,202.8,0.03]
[1757218373532,89.52475504,202.81,202.8,0.03]
[1757218377151,51.98475504,202.81,202.8,0.03]
[1757218377323,89.52475504,202.81,202.8,0.03]
[1757218378030,51.98475504,202.81,202.8,0.03]
[1757218378431,89.52475504,202.81,202.8,0.03]
[1757218381153,85.58313376,202.81,202.8,0.03]
[1757218381527,89.52475504,202.81,202.8,0.03]